[Event "*** Titled Tuesday Blitz"]
[Site "Chess.com"]
[Date "2020.10.20"]
[Round "10"]
[White "Illingworth"]
[Black "Rud_Makarian"]
[Result "1-0"]
[WhiteElo "2900"]
[BlackElo "2750"]
[TimeControl "180+1"]
[EndTime "11:58:12 PDT"]
[Termination "Illingworth won on time"]

1. Nf3 {[%clk 0:02:59.1]} 1... Nf6 {[%clk 0:02:59.6]} 2. c4 {[%clk 0:02:58.7]}
2... g6 {[%clk 0:03:00.1]} 3. Nc3 {[%clk 0:02:58.3]} 3... Bg7 {[%clk 0:03:00.7]}
4. e4 {[%clk 0:02:58.8]} 4... d6 {[%clk 0:03:00.9]} 5. d4 {[%clk 0:02:59.3]}
5... O-O {[%clk 0:03:01.4]} 6. Be2 {[%clk 0:02:59.9]} 6... e5 {[%clk 0:03:01.6]}
7. Be3 {[%clk 0:03:00.3]} 7... Nc6 {[%clk 0:03:02]} 8. d5 {[%clk 0:03:00.5]}
8... Ne7 {[%clk 0:02:56.2]} 9. Nd2 {[%clk 0:02:59.7]} 9... h5 {[%clk 0:02:56.2]}
10. f3 {[%clk 0:02:58.7]} 10... Nh7 {[%clk 0:02:53.2]} 11. b4 {[%clk 0:02:56.5]}
11... f5 {[%clk 0:02:52.7]} 12. c5 {[%clk 0:02:55.1]} 12... f4 {[%clk
0:02:51.7]} 13. Bf2 {[%clk 0:02:55.2]} 13... g5 {[%clk 0:02:52.6]} 14. Nc4
{[%clk 0:02:54]} 14... Rf6 {[%clk 0:02:30.1]} 15. Rc1 {[%clk 0:02:43.6]} 15...
Rg6 {[%clk 0:02:26.1]} 16. cxd6 {[%clk 0:02:39.5]} 16... cxd6 {[%clk 0:02:25.5]}
17. Nb5 {[%clk 0:02:39.9]} 17... g4 {[%clk 0:02:18.6]} 18. Bxa7 {[%clk
0:02:19.9]} 18... Rxa7 {[%clk 0:02:14]} 19. Nxa7 {[%clk 0:02:19.7]} 19... Bd7
{[%clk 0:02:13.9]} 20. b5 {[%clk 0:01:56.2]} 20... Ng5 {[%clk 0:02:10.1]} 21. b6
{[%clk 0:01:54.2]} 21... Bh6 {[%clk 0:01:53.5]} 22. Qb3 {[%clk 0:01:52.5]} 22...
h4 {[%clk 0:01:46.7]} 23. Nxe5 {[%clk 0:01:27.9]} 23... dxe5 {[%clk 0:01:39.3]}
24. d6+ {[%clk 0:01:28.1]} 24... Be6 {[%clk 0:01:26.7]} 25. dxe7 {[%clk
0:01:28.4]} 25... Qxe7 {[%clk 0:01:27.6]} 26. Rc7 {[%clk 0:01:23.8]} 26... Qd6
{[%clk 0:01:22.4]} 27. Nc8 {[%clk 0:01:05.2]} 27... Bxb3 {[%clk 0:00:42.8]} 28.
Nxd6 {[%clk 0:01:05.1]} 28... Rxd6 {[%clk 0:00:43.2]} 29. axb3 {[%clk
0:01:04.6]} 29... h3 {[%clk 0:00:40.6]} 30. gxh3 {[%clk 0:01:01.5]} 30... gxf3
{[%clk 0:00:39.8]} 31. Bc4+ {[%clk 0:01:01.3]} 31... Kh8 {[%clk 0:00:38.5]} 32.
Rxb7 {[%clk 0:00:56.4]} 32... Nxe4 {[%clk 0:00:36.6]} 33. Rb8+ {[%clk
0:00:55.1]} 33... Kh7 {[%clk 0:00:35.4]} 34. b7 {[%clk 0:00:54.2]} 34... f2+
{[%clk 0:00:34.7]} 35. Ke2 {[%clk 0:00:51.4]} 35... Rd2+ {[%clk 0:00:19.7]} 36.
Kf3 {[%clk 0:00:51.4]} 36... Ng5+ {[%clk 0:00:19.9]} 37. Kg4 {[%clk 0:00:51.2]}
37... Rd7 {[%clk 0:00:19.8]} 38. Rh8+ {[%clk 0:00:49.6]} 38... Kxh8 {[%clk
0:00:19.1]} 39. b8=Q+ {[%clk 0:00:50.2]} 39... Kh7 {[%clk 0:00:19.7]} 40. Qxe5
{[%clk 0:00:49.2]} 40... Rg7 {[%clk 0:00:19.5]} 41. Qf5+ {[%clk 0:00:49.6]}
41... Kh8 {[%clk 0:00:18.6]} 42. Kh5 {[%clk 0:00:49.4]} 42... Rh7 {[%clk
0:00:04.6]} 43. Rd1 {[%clk 0:00:44.4]} 1-0

[Event "*** Titled Tuesday Blitz"]
[Site "Chess.com"]
[Date "2020.10.20"]
[Round "10"]
[White "Omk124"]
[Black "ural58"]
[Result "1-0"]
[WhiteElo "2483"]
[BlackElo "2343"]
[TimeControl "180+1"]
[EndTime "11:58:14 PDT"]
[Termination "Omk124 won by resignation"]

1. e4 {[%clk 0:03:00.9]} 1... d5 {[%clk 0:02:59.1]} 2. exd5 {[%clk 0:03:00.8]}
2... Qxd5 {[%clk 0:02:59]} 3. Nc3 {[%clk 0:03:00.8]} 3... Qa5 {[%clk 0:02:58.7]}
4. d4 {[%clk 0:03:00.3]} 4... Nf6 {[%clk 0:02:58.8]} 5. Nf3 {[%clk 0:02:59.6]}
5... Nc6 {[%clk 0:02:58.4]} 6. Bc4 {[%clk 0:02:59.2]} 6... Bg4 {[%clk
0:02:57.7]} 7. Be3 {[%clk 0:02:59.1]} 7... O-O-O {[%clk 0:02:56.4]} 8. h3 {[%clk
0:02:53.9]} 8... Qh5 {[%clk 0:02:50.8]} 9. Be2 {[%clk 0:02:50.1]} 9... e5 {[%clk
0:02:50.7]} 10. O-O {[%clk 0:02:38.4]} 10... exd4 {[%clk 0:02:45.4]} 11. Nxd4
{[%clk 0:02:37]} 11... Bxe2 {[%clk 0:02:28.4]} 12. Ncxe2 {[%clk 0:02:33.6]}
12... Nxd4 {[%clk 0:02:05]} 13. Nxd4 {[%clk 0:02:33.4]} 13... Bc5 {[%clk
0:01:58]} 14. Qxh5 {[%clk 0:02:29.8]} 14... Nxh5 {[%clk 0:01:57.7]} 15. Nc6
{[%clk 0:02:25.9]} 15... bxc6 {[%clk 0:01:56.8]} 16. Bxc5 {[%clk 0:02:25]} 16...
Rd2 {[%clk 0:01:56.6]} 17. Rac1 {[%clk 0:02:22.7]} 17... Nf4 {[%clk 0:01:52]}
18. Be3 {[%clk 0:02:15.9]} 18... Ne2+ {[%clk 0:01:51.9]} 19. Kh1 {[%clk
0:02:15.6]} 19... Rd5 {[%clk 0:01:32.8]} 20. Rcd1 {[%clk 0:02:11.1]} 20... Rhd8
{[%clk 0:01:30.2]} 21. Rxd5 {[%clk 0:02:09.7]} 21... Rxd5 {[%clk 0:01:02.8]} 22.
Re1 {[%clk 0:02:06.8]} 22... Nd4 {[%clk 0:01:00.7]} 23. Bxd4 {[%clk 0:02:04.9]}
23... Rxd4 {[%clk 0:01:00.5]} 24. Re7 {[%clk 0:01:59.6]} 24... Rf4 {[%clk
0:00:57.9]} 25. f3 {[%clk 0:01:59.1]} 25... g6 {[%clk 0:00:55.8]} 26. Kg1 {[%clk
0:01:57.8]} 26... h5 {[%clk 0:00:55.9]} 27. Kf2 {[%clk 0:01:58.1]} 27... Kb7
{[%clk 0:00:52]} 28. Re4 {[%clk 0:01:56.7]} 28... Rf5 {[%clk 0:00:51.8]} 29. Ke3
{[%clk 0:01:56.1]} 29... c5 {[%clk 0:00:51.3]} 30. c4 {[%clk 0:01:55.7]} 30...
Kc6 {[%clk 0:00:51.1]} 31. g4 {[%clk 0:01:54]} 31... hxg4 {[%clk 0:00:50.3]} 32.
hxg4 {[%clk 0:01:54.9]} 32... Rf6 {[%clk 0:00:49.6]} 33. Re5 {[%clk 0:01:54.6]}
33... Rd6 {[%clk 0:00:49.1]} 34. Re7 {[%clk 0:01:51.2]} 34... Rf6 {[%clk
0:00:36.5]} 35. f4 {[%clk 0:01:45.9]} 35... Kd6 {[%clk 0:00:34.9]} 36. Re5
{[%clk 0:01:45]} 36... Re6 {[%clk 0:00:22.2]} 37. Ke4 {[%clk 0:01:44.8]} 37...
f6 {[%clk 0:00:20.5]} 38. Rxe6+ {[%clk 0:01:44.6]} 38... Kxe6 {[%clk 0:00:21.4]}
39. f5+ {[%clk 0:01:33.9]} 39... gxf5+ {[%clk 0:00:21.3]} 40. gxf5+ {[%clk
0:01:34.8]} 40... Kd6 {[%clk 0:00:21.7]} 41. Kf4 {[%clk 0:01:35.5]} 41... Kc6
{[%clk 0:00:21.6]} 42. Kg4 {[%clk 0:01:35]} 42... Kd6 {[%clk 0:00:21.9]} 43. Kh5
{[%clk 0:01:35.5]} 43... Ke5 {[%clk 0:00:21.7]} 44. Kg6 {[%clk 0:01:35.8]} 44...
a5 {[%clk 0:00:21.4]} 45. a4 {[%clk 0:01:34]} 45... Kd4 {[%clk 0:00:15.4]} 46.
Kxf6 {[%clk 0:01:33.4]} 46... Kxc4 {[%clk 0:00:15.1]} 47. Ke5 {[%clk 0:01:34]}
47... Kb3 {[%clk 0:00:14.8]} 48. f6 {[%clk 0:01:34.9]} 48... Kxb2 {[%clk
0:00:15]} 49. f7 {[%clk 0:01:35.8]} 49... c4 {[%clk 0:00:15.9]} 50. f8=Q {[%clk
0:01:36.1]} 50... c3 {[%clk 0:00:16.2]} 51. Qc5 {[%clk 0:01:36]} 51... c2 {[%clk
0:00:16.1]} 52. Qb5+ {[%clk 0:01:21.9]} 52... Ka1 {[%clk 0:00:14.6]} 53. Qc6
{[%clk 0:01:20.2]} 53... Kb2 {[%clk 0:00:12.9]} 54. Qb7+ {[%clk 0:01:20.2]}
54... Ka2 {[%clk 0:00:10.9]} 55. Qxc7 {[%clk 0:01:20.2]} 55... Kb2 {[%clk
0:00:11.5]} 56. Kd4 {[%clk 0:01:06.5]} 56... c1=Q {[%clk 0:00:08.7]} 57. Qxc1+
{[%clk 0:01:07.1]} 57... Kxc1 {[%clk 0:00:09.6]} 58. Kc5 {[%clk 0:01:07.5]}
58... Kd2 {[%clk 0:00:09.7]} 59. Kb5 {[%clk 0:01:08.4]} 59... Kd3 {[%clk
0:00:10.6]} 60. Kxa5 {[%clk 0:01:09.3]} 60... Kd4 {[%clk 0:00:11.5]} 61. Kb6
{[%clk 0:01:10]} 61... Kd5 {[%clk 0:00:12.4]} 62. a5 {[%clk 0:01:10.9]} 1-0

[Event "*** Titled Tuesday Blitz"]
[Site "Chess.com"]
[Date "2020.10.20"]
[Round "10"]
[White "BigAl"]
[Black "PavelShkapenko"]
[Result "0-1"]
[WhiteElo "2487"]
[BlackElo "2713"]
[TimeControl "180+1"]
[EndTime "11:58:16 PDT"]
[Termination "PavelShkapenko won by resignation"]

1. Nf3 {[%clk 0:03:00.9]} 1... Nf6 {[%clk 0:02:59.6]} 2. g3 {[%clk 0:03:01.2]}
2... d5 {[%clk 0:02:59.5]} 3. Bg2 {[%clk 0:03:01.8]} 3... c6 {[%clk 0:02:59.8]}
4. O-O {[%clk 0:03:02.6]} 4... Bg4 {[%clk 0:02:59.9]} 5. d3 {[%clk 0:03:03.4]}
5... Nbd7 {[%clk 0:02:59.1]} 6. c4 {[%clk 0:03:03.9]} 6... e6 {[%clk 0:02:59.3]}
7. Be3 {[%clk 0:03:04.6]} 7... Bc5 {[%clk 0:02:58.2]} 8. Bxc5 {[%clk 0:03:03.4]}
8... Nxc5 {[%clk 0:02:57.3]} 9. b4 {[%clk 0:03:01.6]} 9... Ncd7 {[%clk
0:02:55.9]} 10. b5 {[%clk 0:03:00]} 10... cxb5 {[%clk 0:02:53.7]} 11. cxd5
{[%clk 0:02:48]} 11... exd5 {[%clk 0:02:53.6]} 12. Qb3 {[%clk 0:02:31.5]} 12...
a6 {[%clk 0:02:52.9]} 13. Nc3 {[%clk 0:02:22.1]} 13... Be6 {[%clk 0:02:51.5]}
14. Nd4 {[%clk 0:02:09.4]} 14... Qb6 {[%clk 0:02:45.5]} 15. e3 {[%clk
0:01:57.5]} 15... O-O {[%clk 0:02:36.7]} 16. Rab1 {[%clk 0:01:44]} 16... Rac8
{[%clk 0:02:27]} 17. Rfc1 {[%clk 0:01:35]} 17... Nc5 {[%clk 0:02:25.9]} 18. Qd1
{[%clk 0:01:34.6]} 18... Qd6 {[%clk 0:02:18.2]} 19. h3 {[%clk 0:01:24.7]} 19...
b4 {[%clk 0:02:12.3]} 20. Nce2 {[%clk 0:01:21.9]} 20... a5 {[%clk 0:02:11.5]}
21. Nf4 {[%clk 0:01:13.8]} 21... Bd7 {[%clk 0:02:10.5]} 22. Qd2 {[%clk
0:01:04.7]} 22... Na4 {[%clk 0:02:05]} 23. g4 {[%clk 0:01:00.4]} 23... h6 {[%clk
0:02:01.4]} 24. Ra1 {[%clk 0:00:42.6]} 24... Rxc1+ {[%clk 0:01:55.6]} 25. Rxc1
{[%clk 0:00:42]} 25... Rc8 {[%clk 0:01:56.1]} 26. Rxc8+ {[%clk 0:00:42]} 26...
Bxc8 {[%clk 0:01:56.2]} 27. Qc2 {[%clk 0:00:42.7]} 27... Bd7 {[%clk 0:01:56.3]}
28. Nf5 {[%clk 0:00:41.8]} 28... Qc5 {[%clk 0:01:20.4]} 29. Qxc5 {[%clk
0:00:41.9]} 29... Nxc5 {[%clk 0:01:20.5]} 30. Ne7+ {[%clk 0:00:42.4]} 30... Kf8
{[%clk 0:01:20.1]} 31. Nexd5 {[%clk 0:00:43.3]} 31... Nxd5 {[%clk 0:01:07.2]}
32. Bxd5 {[%clk 0:00:43]} 32... Bc6 {[%clk 0:01:06.1]} 33. d4 {[%clk 0:00:34.3]}
33... Na4 {[%clk 0:00:56.8]} 34. Bb3 {[%clk 0:00:27]} 34... Nc3 {[%clk
0:00:56.9]} 35. d5 {[%clk 0:00:27.5]} 35... Bd7 {[%clk 0:00:56.9]} 36. Nd3
{[%clk 0:00:24.8]} 36... a4 {[%clk 0:00:52.4]} 37. Bc2 {[%clk 0:00:25]} 37...
Nxa2 {[%clk 0:00:52]} 38. Bb1 {[%clk 0:00:24.5]} 38... b3 {[%clk 0:00:49.7]} 39.
Nc5 {[%clk 0:00:24.8]} 39... Bb5 {[%clk 0:00:48.2]} 40. d6 {[%clk 0:00:20.9]}
40... Nc3 {[%clk 0:00:48]} 41. Bf5 {[%clk 0:00:15.9]} 41... b2 {[%clk
0:00:36.3]} 42. d7 {[%clk 0:00:07.3]} 42... Ke7 {[%clk 0:00:36.2]} 43. Bc2
{[%clk 0:00:06.6]} 43... Bxd7 {[%clk 0:00:34.3]} 44. Nxb7 {[%clk 0:00:02]} 44...
a3 {[%clk 0:00:34.2]} 45. Nc5 {[%clk 0:00:02.1]} 45... a2 {[%clk 0:00:34.4]} 46.
Nxd7 {[%clk 0:00:02.6]} 0-1

[Event "*** Titled Tuesday Blitz"]
[Site "Chess.com"]
[Date "2020.10.20"]
[Round "10"]
[White "RamyresCoelho"]
[Black "Morshynska"]
[Result "1/2-1/2"]
[WhiteElo "2055"]
[BlackElo "2210"]
[TimeControl "180+1"]
[EndTime "11:58:17 PDT"]
[Termination "Game drawn - insufficient material"]

1. e4 {[%clk 0:02:58.9]} 1... e5 {[%clk 0:02:59.7]} 2. Nf3 {[%clk 0:02:58.1]}
2... Nc6 {[%clk 0:02:59.9]} 3. d4 {[%clk 0:02:57.4]} 3... exd4 {[%clk
0:02:59.8]} 4. Bc4 {[%clk 0:02:56.3]} 4... Nf6 {[%clk 0:02:57]} 5. e5 {[%clk
0:02:56.2]} 5... d5 {[%clk 0:02:54.3]} 6. Bb5 {[%clk 0:02:54.4]} 6... Ne4 {[%clk
0:02:49]} 7. Nxd4 {[%clk 0:02:54.6]} 7... Bd7 {[%clk 0:02:40.2]} 8. Bxc6 {[%clk
0:02:53.1]} 8... bxc6 {[%clk 0:02:41.1]} 9. O-O {[%clk 0:02:53.5]} 9... Bc5
{[%clk 0:02:00.1]} 10. f3 {[%clk 0:02:53.2]} 10... Ng5 {[%clk 0:01:55.4]} 11. f4
{[%clk 0:02:53.4]} 11... Ne4 {[%clk 0:01:46.4]} 12. Nc3 {[%clk 0:02:52.8]} 12...
Nxc3 {[%clk 0:01:38.4]} 13. bxc3 {[%clk 0:02:53.7]} 13... O-O {[%clk 0:01:36.2]}
14. Be3 {[%clk 0:02:44.9]} 14... Qe7 {[%clk 0:01:20.9]} 15. Qd2 {[%clk 0:02:42]}
15... f6 {[%clk 0:01:13.3]} 16. Nf3 {[%clk 0:02:37.1]} 16... Bb6 {[%clk
0:01:09.3]} 17. Bxb6 {[%clk 0:02:34.5]} 17... axb6 {[%clk 0:01:10.2]} 18. a4
{[%clk 0:02:25.5]} 18... Ra5 {[%clk 0:01:04]} 19. Kh1 {[%clk 0:02:25.1]} 19...
Rfa8 {[%clk 0:01:02]} 20. Qd4 {[%clk 0:02:22.9]} 20... Be6 {[%clk 0:00:54.9]}
21. Nd2 {[%clk 0:02:10.6]} 21... c5 {[%clk 0:00:51.8]} 22. Qe3 {[%clk
0:02:10.3]} 22... Rxa4 {[%clk 0:00:47.3]} 23. Rxa4 {[%clk 0:02:11.2]} 23... Rxa4
{[%clk 0:00:47.6]} 24. Re1 {[%clk 0:02:10.5]} 24... f5 {[%clk 0:00:46.5]} 25.
Nf3 {[%clk 0:02:05.4]} 25... h6 {[%clk 0:00:45.8]} 26. h3 {[%clk 0:02:04.6]}
26... Ra2 {[%clk 0:00:44.8]} 27. Re2 {[%clk 0:02:03.8]} 27... Qd7 {[%clk
0:00:42.8]} 28. Kh2 {[%clk 0:02:03.4]} 28... Qa4 {[%clk 0:00:41.9]} 29. Qd2
{[%clk 0:01:59.5]} 29... Qc4 {[%clk 0:00:33.6]} 30. g3 {[%clk 0:01:56.5]} 30...
Kh7 {[%clk 0:00:32.3]} 31. Ne1 {[%clk 0:01:53.9]} 31... Ra3 {[%clk 0:00:30.7]}
32. Re3 {[%clk 0:01:50.6]} 32... d4 {[%clk 0:00:28.6]} 33. cxd4 {[%clk
0:01:49.3]} 33... Rxe3 {[%clk 0:00:29.5]} 34. Qxe3 {[%clk 0:01:48.9]} 34... Qxd4
{[%clk 0:00:29.3]} 35. Qxd4 {[%clk 0:01:41.1]} 35... cxd4 {[%clk 0:00:30.2]} 36.
Kg1 {[%clk 0:01:41.3]} 36... c5 {[%clk 0:00:29.8]} 37. Kf2 {[%clk 0:01:41.5]}
37... Kg8 {[%clk 0:00:25.8]} 38. Ke2 {[%clk 0:01:34.2]} 38... Kf7 {[%clk
0:00:25.3]} 39. Kd3 {[%clk 0:01:33.8]} 39... Ke7 {[%clk 0:00:25.1]} 40. c3
{[%clk 0:01:33]} 40... dxc3 {[%clk 0:00:26]} 41. Kxc3 {[%clk 0:01:33.9]} 41...
Kd7 {[%clk 0:00:26.3]} 42. Nc2 {[%clk 0:01:32]} 42... Kc6 {[%clk 0:00:26.1]} 43.
Ne3 {[%clk 0:01:30.4]} 43... b5 {[%clk 0:00:26]} 44. g4 {[%clk 0:01:30.8]} 44...
b4+ {[%clk 0:00:25.7]} 45. Kd3 {[%clk 0:01:30.4]} 45... g6 {[%clk 0:00:25.9]}
46. g5 {[%clk 0:01:25.7]} 46... hxg5 {[%clk 0:00:23.8]} 47. fxg5 {[%clk
0:01:26.6]} 47... Kb5 {[%clk 0:00:22.8]} 48. h4 {[%clk 0:01:22.5]} 48... c4+
{[%clk 0:00:22.6]} 49. Kc2 {[%clk 0:01:22.4]} 49... c3 {[%clk 0:00:20.6]} 50.
Ng2 {[%clk 0:01:17.5]} 50... Kc5 {[%clk 0:00:18.8]} 51. Nf4 {[%clk 0:01:17.7]}
51... Bf7 {[%clk 0:00:17.1]} 52. e6 {[%clk 0:01:17]} 52... Be8 {[%clk
0:00:17.1]} 53. h5 {[%clk 0:01:12]} 53... gxh5 {[%clk 0:00:18]} 54. g6 {[%clk
0:01:11.6]} 54... Bxg6 {[%clk 0:00:12.7]} 55. Nxg6 {[%clk 0:01:12.5]} 55... Kd6
{[%clk 0:00:12.7]} 56. e7 {[%clk 0:01:10.8]} 56... Kd7 {[%clk 0:00:13]} 57. Kb3
{[%clk 0:01:09.9]} 57... h4 {[%clk 0:00:10.2]} 58. Nxh4 {[%clk 0:01:09.3]} 58...
Kxe7 {[%clk 0:00:09.8]} 59. Nxf5+ {[%clk 0:01:09.8]} 59... Kf6 {[%clk
0:00:10.1]} 60. Nd4 {[%clk 0:01:10.7]} 60... Ke5 {[%clk 0:00:10]} 61. Nc2 {[%clk
0:01:10.6]} 61... Kd5 {[%clk 0:00:10.1]} 62. Nxb4+ {[%clk 0:01:10.7]} 62... Kc5
{[%clk 0:00:11]} 63. Kxc3 {[%clk 0:01:10.8]} 1/2-1/2

[Event "*** Titled Tuesday Blitz"]
[Site "Chess.com"]
[Date "2020.10.20"]
[Round "10"]
[White "Chessmatus"]
[Black "C_K_G"]
[Result "1-0"]
[WhiteElo "2398"]
[BlackElo "2157"]
[TimeControl "180+1"]
[EndTime "11:58:18 PDT"]
[Termination "Chessmatus won on time"]

1. e4 {[%clk 0:03:00.9]} 1... c5 {[%clk 0:02:59.2]} 2. Nf3 {[%clk 0:02:58.3]}
2... d6 {[%clk 0:02:59.3]} 3. d4 {[%clk 0:02:58.5]} 3... cxd4 {[%clk 0:03:00.1]}
4. Nxd4 {[%clk 0:02:59.4]} 4... Nf6 {[%clk 0:02:59.2]} 5. Nc3 {[%clk 0:02:59.8]}
5... a6 {[%clk 0:02:59.3]} 6. Be3 {[%clk 0:03:00.4]} 6... e5 {[%clk 0:02:58.4]}
7. Nb3 {[%clk 0:03:01]} 7... Be7 {[%clk 0:02:57.9]} 8. f3 {[%clk 0:03:00.2]}
8... Be6 {[%clk 0:02:57.6]} 9. Qd2 {[%clk 0:02:59.9]} 9... O-O {[%clk
0:02:57.8]} 10. O-O-O {[%clk 0:03:00.4]} 10... b5 {[%clk 0:02:57.1]} 11. g4
{[%clk 0:02:57.1]} 11... Qc7 {[%clk 0:02:55.2]} 12. g5 {[%clk 0:02:54.2]} 12...
Nh5 {[%clk 0:02:49.2]} 13. Kb1 {[%clk 0:02:54.6]} 13... Nd7 {[%clk 0:02:46.7]}
14. f4 {[%clk 0:02:54.5]} 14... Nb6 {[%clk 0:02:43.2]} 15. f5 {[%clk 0:02:49.2]}
15... Bc4 {[%clk 0:02:41.9]} 16. Na5 {[%clk 0:02:15.6]} 16... Bxf1 {[%clk
0:02:33.6]} 17. Rhxf1 {[%clk 0:02:12.3]} 17... b4 {[%clk 0:02:30.1]} 18. Bxb6
{[%clk 0:01:52.3]} 18... Qxb6 {[%clk 0:02:22.8]} 19. Nd5 {[%clk 0:01:51.3]}
19... Qxa5 {[%clk 0:02:19.4]} 20. Nxe7+ {[%clk 0:01:51.6]} 20... Kh8 {[%clk
0:02:19.3]} 21. Nd5 {[%clk 0:01:50.4]} 21... Rac8 {[%clk 0:02:05]} 22. Qe2
{[%clk 0:01:45]} 22... g6 {[%clk 0:01:48.5]} 23. Rd3 {[%clk 0:01:38.5]} 23...
Qb5 {[%clk 0:01:44.3]} 24. Qg2 {[%clk 0:01:04.9]} 24... a5 {[%clk 0:01:33.8]}
25. Nf6 {[%clk 0:00:23.5]} 25... Nxf6 {[%clk 0:00:49.1]} 26. gxf6 {[%clk
0:00:24.4]} 26... Qc4 {[%clk 0:00:47.5]} 27. Rh3 {[%clk 0:00:20.7]} 27... Kg8
{[%clk 0:00:24.7]} 28. Re1 {[%clk 0:00:20.1]} 28... a4 {[%clk 0:00:21.7]} 29.
Rxh7 {[%clk 0:00:19.3]} 29... Kxh7 {[%clk 0:00:21.6]} 30. Qh3+ {[%clk
0:00:10.3]} 30... Kg8 {[%clk 0:00:20.5]} 31. Rc1 {[%clk 0:00:10.8]} 31... b3
{[%clk 0:00:16.2]} 32. Qh6 {[%clk 0:00:10.7]} 32... bxc2+ {[%clk 0:00:10.3]} 33.
Ka1 {[%clk 0:00:10.8]} 1-0

[Event "*** Titled Tuesday Blitz"]
[Site "Chess.com"]
[Date "2020.10.20"]
[Round "10"]
[White "AsaHoffmann"]
[Black "Grineva_Marianna"]
[Result "1-0"]
[WhiteElo "2385"]
[BlackElo "2261"]
[TimeControl "180+1"]
[EndTime "11:58:19 PDT"]
[Termination "AsaHoffmann won on time"]

1. d4 {[%clk 0:02:58.2]} 1... f5 {[%clk 0:02:58.7]} 2. Nc3 {[%clk 0:02:56.9]}
2... Nf6 {[%clk 0:02:59.3]} 3. Bg5 {[%clk 0:02:55.9]} 3... d5 {[%clk 0:02:57.1]}
4. f3 {[%clk 0:02:55.3]} 4... e6 {[%clk 0:02:50.6]} 5. e4 {[%clk 0:02:52.6]}
5... Be7 {[%clk 0:02:48.4]} 6. exf5 {[%clk 0:02:51.2]} 6... exf5 {[%clk
0:02:47.4]} 7. Bd3 {[%clk 0:02:50.6]} 7... O-O {[%clk 0:02:46.1]} 8. Nge2 {[%clk
0:02:50.3]} 8... h6 {[%clk 0:02:41.8]} 9. Bh4 {[%clk 0:02:48]} 9... c6 {[%clk
0:02:41.3]} 10. Qd2 {[%clk 0:02:47.6]} 10... Qb6 {[%clk 0:02:30.3]} 11. O-O-O
{[%clk 0:02:46.7]} 11... Na6 {[%clk 0:02:19.1]} 12. a3 {[%clk 0:02:45.4]} 12...
Ne4 {[%clk 0:02:07]} 13. fxe4 {[%clk 0:02:39.9]} 13... Bxh4 {[%clk 0:02:06.6]}
14. exd5 {[%clk 0:02:29]} 14... Bg5 {[%clk 0:01:57.2]} 15. Nf4 {[%clk
0:02:28.2]} 15... Qxd4 {[%clk 0:01:55.5]} 16. g3 {[%clk 0:02:22.3]} 16... Nc5
{[%clk 0:01:42.9]} 17. dxc6 {[%clk 0:02:17.9]} 17... Nxd3+ {[%clk 0:01:37]} 18.
Qxd3 {[%clk 0:02:16.9]} 18... Bxf4+ {[%clk 0:01:34]} 19. gxf4 {[%clk 0:02:16.9]}
19... Qxf4+ {[%clk 0:01:34.7]} 20. Kb1 {[%clk 0:02:16.8]} 20... bxc6 {[%clk
0:01:33]} 21. Rhg1 {[%clk 0:02:08.1]} 21... Be6 {[%clk 0:01:20]} 22. Qd6 {[%clk
0:02:02.3]} 22... Qxd6 {[%clk 0:01:11.7]} 23. Rxd6 {[%clk 0:02:01.1]} 23... Rf6
{[%clk 0:01:11.4]} 24. b3 {[%clk 0:01:57]} 24... Rc8 {[%clk 0:01:06]} 25. h4
{[%clk 0:01:52.3]} 25... Kf7 {[%clk 0:01:04.4]} 26. h5 {[%clk 0:01:47.8]} 26...
Rc7 {[%clk 0:00:44.5]} 27. Na4 {[%clk 0:01:38.5]} 27... Bd5 {[%clk 0:00:41.1]}
28. Rd8 {[%clk 0:01:32.8]} 28... f4 {[%clk 0:00:38.6]} 29. Nc5 {[%clk
0:01:30.6]} 29... f3 {[%clk 0:00:37]} 30. c4 {[%clk 0:01:26.6]} 30... f2 {[%clk
0:00:33.5]} 31. Rf1 {[%clk 0:01:21.3]} 31... Bg2 {[%clk 0:00:32.2]} 32. Rdd1
{[%clk 0:01:12.4]} 32... Bxf1 {[%clk 0:00:32]} 33. Rxf1 {[%clk 0:01:12]} 33...
Re7 {[%clk 0:00:32.7]} 34. Nd3 {[%clk 0:01:10.2]} 34... Re2 {[%clk 0:00:32.1]}
35. Kc1 {[%clk 0:01:07.4]} 35... Rf3 {[%clk 0:00:31]} 36. Kd1 {[%clk 0:01:06.1]}
36... Ree3 {[%clk 0:00:18.2]} 37. Nxf2 {[%clk 0:01:03]} 37... Ke6 {[%clk
0:00:16.2]} 38. Kd2 {[%clk 0:00:59.7]} 38... Kf5 {[%clk 0:00:13.7]} 39. Rg1
{[%clk 0:00:55.5]} 39... Rxf2+ {[%clk 0:00:09.5]} 40. Kxe3 {[%clk 0:00:55.1]}
40... Rb2 {[%clk 0:00:09.5]} 41. Rxg7 {[%clk 0:00:54]} 41... Rxb3+ {[%clk
0:00:09.7]} 42. Kd4 {[%clk 0:00:54.2]} 42... Rh3 {[%clk 0:00:07.8]} 43. Rxa7
{[%clk 0:00:53.3]} 43... Rh4+ {[%clk 0:00:07.1]} 44. Kc5 {[%clk 0:00:52.9]}
44... Rxh5 {[%clk 0:00:06.7]} 45. Kxc6 {[%clk 0:00:52.5]} 45... Rh2 {[%clk
0:00:05.1]} 46. c5 {[%clk 0:00:52.2]} 46... h5 {[%clk 0:00:05.5]} 47. Rh7 {[%clk
0:00:50]} 47... h4 {[%clk 0:00:05.1]} 48. Kc7 {[%clk 0:00:49.1]} 48... Rh3
{[%clk 0:00:03.3]} 49. a4 {[%clk 0:00:48.6]} 49... Rh1 {[%clk 0:00:01.4]} 50. c6
{[%clk 0:00:48.2]} 50... h3 {[%clk 0:00:01.8]} 51. a5 {[%clk 0:00:48.3]} 51...
Ke6 {[%clk 0:00:01.1]} 52. a6 {[%clk 0:00:47.6]} 1-0